Cogmind - Beta 14 @@@ ROGUE MODE // 2024.11.30 @ 11:24:59 Player: Fangrelle Result: Destroyed by I9-TCJ(R) with Subdweller Beam Cannon Performance ------------- Evolutions (0) 0 Regions Visited (3) 600 Robots Destroyed (38) 190 Value Destroyed (966) 966 Prototype IDs (1) 20 Alien Tech Used (0) 0 Bonus (0) 0 TOTAL SCORE: 1776 Bonus ------- None Cogmind --------- Core Integrity 0/250 Matter 130/300 Energy 98/100 System Corruption 2% Temperature Cool (10) Movement Treading (240) Ox1 Location -10/Subcaves Parts ------- > --- POWER (1) -------- (None) > --- PROPULSION (2) --- Light Treads > --- UTILITY (2) ------ Scrap Shield > --- WEAPON (2) ------- Battle Cannon Slug Cannon > --- INVENTORY (5) ---- Experimental Sensor Array Hardened Medium Armor Plating Improved Trap Extractor (0/6) Improved Datajack Shrapnel Trap Peak State ------------ > --- POWER ------------ Ion Engine > --- PROPULSION ------- Light Treads Light Treads > --- UTILITY ---------- Large Storage Unit Experimental Sensor Array > --- WEAPON ----------- Light Cannon Light Cannon > --- INVENTORY -------- Signal Interpreter Advanced Targeting Computer Melee Analysis Suite Improved Utility Shielding Light Armor Plating Light Armor Plating Hardened Medium Armor Plating Improved Trap Extractor EM Pulse Gun EM Pulse Gun Assault Rifle Assault Rifle Light Cannon Improved Datajack Mining Laser [Rating: 17] Favorites ----------- Power Ion Engine Engine Ion Engine Propulsion Light Treads Treads Light Treads Leg Aluminum Leg Wheel Wheel Utility Large Storage Unit Device Experimental Sensor Array Storage Large Storage Unit Processor Targeting Computer Protection Hardened Medium Armor Plating Weapon Light Cannon Energy Gun Small Laser Ballistic Gun Assault Rifle Ballistic Cannon Light Cannon Special Weapon Mining Laser Build | -11 -10 -10 -10 ------- Run | Yrd Mat Min Sub Slots Evolved . | . . . . Power . | . . . . Propulsion . | . . . . Utility . | . . . . Weapon . | . . . . Parts Attached 32 | . 20 3 9 Power . | . . . . Engine . | . . . . Core . | . . . . Reactor . | . . . . Propulsion 8 | . 7 1 . Treads 7 | . 6 1 . Leg . | . . . . Wheel 1 | . 1 . . Hover . | . . . . Flight . | . . . . Utility 9 | . 5 . 4 Device 1 | . . . 1 Storage 1 | . 1 . . Processor 2 | . 2 . . Hackware . | . . . . Protection 5 | . 2 . 3 Artifact . | . . . . Weapon 15 | . 8 2 5 Energy Gun 2 | . 2 . . Energy Cannon . | . . . . Ballistic Gun 1 | . . . 1 Ballistic Cannon 10 | . 5 1 4 Launcher . | . . . . Special Weapon 2 | . 1 1 . Impact Weapon . | . . . . Slashing Weapon . | . . . . Piercing Weapon . | . . . . Special Melee Weapon . | . . . . Unidentified Prototypes 1 | . . . 1 Parts Lost 7 | . 2 . 5 Power 1 | . . . 1 Propulsion 2 | . 1 . 1 Utility 1 | . . . 1 Weapon 3 | . 1 . 2 Highest Loss Streak 3 | . 1 . 3 To Critical Strikes . | . . . . Average Slot Usage (%) 88 | . 97 100 77 Engine 11 | . 14 14 9 Treads 20 | . 23 28 14 Storage 11 | . 10 14 11 Processor 2 | . 10 . . Protection 12 | . 7 14 13 Ballistic Gun 1 | . . . 2 Ballistic Cannon 24 | . 24 23 25 Special Weapon 1 | . . 4 . Peak Build Rating 17 | . 8 10 17 Average Rating 10 | . 7 9 12 On Entrance 7 | 6 6 8 10 Naked Turns . | . . . . Heaviest Build 43 | 12 34 34 43 Greatest Support 40 | 20 40 40 40 Greatest Overweight (x) 3 | . 3 1 2 Average Overweight (x) . | . . . 1 Largest Inventory Capacity 15 | . 15 15 15 Average Capacity 13 | . 11 15 13 Most Carried 15 | . 13 15 15 Average Carried 11 | . 7 14 11 Final Capacity 15 | 8 15 15 5 Final Carried 15 | 6 13 15 5 Class Distribution -------------------- 62% | Commander-Mutant 37% | Mutant Dominant Class ---------------- Mutant | -10/Materials Mutant | -10/Mines Commander-Mutant | -10/Subcaves Resources | -11 -10 -10 -10 ----------- Run | Yrd Mat Min Sub Matter Collected 1248 | 200 506 255 287 Remotely . | . . . . Salvage Created 919 | . 578 145 196 Parts 62 | . 38 13 11 Haulers Intercepted 2 | . 2 . . Recyclers Shooed 1 | . 1 . . Parts Field Recycled . | . . . . Retrieved Matter . | . . . . Parts Self-Destructed 14 | . . . 14 Prevented . | . . . . Kills | -11 -10 -10 -10 ------- Run | Yrd Mat Min Sub Combat Hostiles Destroyed 27 | . 13 6 8 Cannons 27 | . 13 6 8 Classes Destroyed 9 | . 7 1 1 Worker 3 | . 3 . . Builder 1 | . . 1 . Hauler 2 | . 2 . . Recycler 1 | . 1 . . Operator 1 | . 1 . . Watcher 3 | . 3 . . Swarmer 6 | . 3 3 . Grunt 13 | . 10 3 . Subdweller 8 | . . . 8 Best Kill Streak 8 | . 8 5 2 Combat Bots Only 7 | . 7 5 2 Max Kills in Single Turn 2 | . 2 1 1 Gunslinging . | . . . . Exploded . | . . . . Melee . | . . . . Uniques/NPCs Destroyed . | . . . . Combat | -11 -10 -10 -10 -------- Run | Yrd Mat Min Sub Hostile Shots Fired 140 | . 77 25 38 Missed 35 | . 22 4 9 Damage Taken 1690 | . 625 232 833 Core 265 | . 113 26 126 Absorbed by Shields . | . . . . Regen/Repaired (Parts) 245 | . 245 . . Core Remaining (%) 100 | 100 . . . Volleys Fired 111 | . 56 26 29 Largest 2 | . 2 2 2 Hottest 100 | . 100 100 83 Shots Fired 209 | . 104 48 57 Gun 7 | . 6 . 1 Cannon 192 | . 93 43 56 Launcher . | . . . . Special 10 | . 5 5 . Kinetic 193 | . 93 43 57 Thermal 13 | . 8 5 . Explosive . | . . . . Electromagnetic 3 | . 3 . . Robot Hit Streak 15 | . 6 15 8 Robot Miss Streak 4 | . 4 2 2 Penetration Max . | . . . . Secondary Targets . | . . . . Shots Hit Robots 128 | . 58 30 40 Core Hits 50 | . 28 7 15 Critical Kills 1 | . . . 1 Critical Parts Destroyed . | . . . . Critical Strikes 9 | . 4 3 2 Destroy 1 | . . . 1 Blast 8 | . 4 3 1 Melee Attacks . | . . . . Impact . | . . . . Slashing . | . . . . Piercing . | . . . . Sneak Attacks . | . . . . Combat Hostiles . | . . . . Follow-up Attacks . | . . . . Damage Inflicted 2454 | . 1126 568 760 Guns 81 | . 69 . 12 Cannons 2373 | . 1057 568 748 Explosions . | . . . . Melee . | . . . . Ramming . | . . . . Kinetic 2385 | . 1057 568 760 Thermal 24 | . 24 . . Explosive . | . . . . Electromagnetic 45 | . 45 . . Impact . | . . . . Slashing . | . . . . Piercing . | . . . . Highest Corruption 2 | . 2 2 2 Average Corruption 1 | . 1 2 2 Corruption Purged . | . . . . Corruption Blocked . | . . . . Effects 84 | . 12 22 50 Message Errors 25 | . 7 6 12 Matter Fused 20 | . 1 9 10 Heat Flow Errors 10 | . . 1 9 Energy Discharges 12 | . 4 . 8 Data Loss (minor) 12 | . . 5 7 Data Loss (major) 2 | . . . 2 Misfires 2 | . . 1 1 Alerts 1 | . . . 1 Overload Shots . | . . . . Overflow Damage 26 | . 14 5 7 Projectiles 26 | . 14 5 7 Explosions . | . . . . Melee . | . . . . Knockbacks 30 | . 16 8 6 Impact . | . . . . Kinetic 25 | . 13 6 6 Secondary 5 | . 3 2 . Self-Inflicted Damage . | . . . . Shots . | . . . . Rammed . | . . . . Targets Rammed . | . . . . Kicked . | . . . . Crushed . | . . . . Highest Temperature 267 | . 186 249 267 Average Temperature 63 | . 51 69 95 Received Heat Transfer 786 | . 309 57 420 Siege Activations . | . . . . Robots Corrupted . | . . . . Combat Hostiles . | . . . . Parts Fried . | . . . . Impact Corruptions . | . . . . Robots Melted . | . . . . Combat Hostiles . | . . . . Parts Melted . | . . . . Heat Transferred 50 | . 50 . . Parts Sabotaged . | . . . . Parts Stolen . | . . . . Parts Stripped . | . . . . Power Chain Reactions . | . . . . Alert | -11 -10 -10 -10 ------- Run | Yrd Mat Min Sub Peak Influence 241 | . 241 170 . Initial . | . . . . Average 55 | . 108 8 . Maximum Alert Level 1 | . 1 . . Low Security (%) 95 | . 89 100 . Level 1 4 | . 10 . . Level 2 . | . . . . Level 3 . | . . . . Level 4 . | . . . . Level 5 . | . . . . High Security . | . . . . Max Security . | . . . . Squads Dispatched 4 | . 3 1 . Investigation 3 | . 2 1 . Extermination . | . . . . Reinforcement 1 | . 1 . . Assault . | . . . . Garrison . | . . . . Intercept . | . . . . Searches Triggered . | . . . . Construction Impeded . | . . . . Haulers Reinforced . | . . . . Active Scanning Responses . | . . . . Cargo Convoy Interrupts . | . . . . Stealth | -11 -10 -10 -10 --------- Run | Yrd Mat Min Sub Distress Signals 1 | . 1 . . Communications Jammed . | . . . . Distress Signals . | . . . . Times Spotted 43 | . 25 8 10 Peak Tracking Total 5 | . 5 3 2 Tactical Retreats 6 | . 2 4 . Traps | -11 -10 -10 -10 ------- Run | Yrd Mat Min Sub Traps Triggered 5 | . 3 2 . Indirectly . | . . . . Trap Hack Attempts . | . . . . Triggered . | . . . . Disarmed . | . . . . Reprogrammed . | . . . . Reused 1 | . . . 1 Traps Extracted . | . . . . Installed 1 | . . . 1 Triggered 1 | . 1 . . Most Traps Carried 1 | . . . 1 Machines | -11 -10 -10 -10 ---------- Run | Yrd Mat Min Sub Machines Disabled 1 | . . 1 . Max in Single Turn 1 | . . 1 . Machines Repaired . | . . . . Machines Dismantled . | . . . . Machines Sabotaged . | . . . . Overloaded Fab Kills . | . . . . Hacking | -11 -10 -10 -10 --------- Run | Yrd Mat Min Sub Machines Accessed 12 | . 9 2 1 Terminals 8 | . 7 1 . Fabricators . | . . . . Repair Stations 1 | . 1 . . Recycling Units 1 | . 1 . . Scanalyzers . | . . . . Garrison Access . | . . . . Total Hacks 42 | . 35 3 4 Successful 29 | . 24 1 4 Failed 13 | . 11 2 . Catastrophic 1 | . 1 . . Database Lockouts . | . . . . Manual 26 | . 24 2 . Terminals 26 | . 24 2 . Fabricators . | . . . . Repair Stations 10 | . 10 . . Recycling Units 1 | . 1 . . Scanalyzers . | . . . . Garrison Access . | . . . . Terminal Hacks 6 | . 1 1 4 Record 4 | . . . 4 Robot Analysis 1 | . 1 . . Open Door 1 | . . 1 . Fabricator Hacks . | . . . . Repair Station Hacks 10 | . 10 . . Scan Component 5 | . 5 . . Repair 5 | . 5 . . Recycling Unit Hacks 1 | . 1 . . Retrieve Components 1 | . 1 . . Scanalyzer . | . . . . Garrison Access Hacks . | . . . . Unauthorized Hacks 12 | . 12 . . Terminals 12 | . 12 . . Assimilate 4 | . 4 . . Botnet 6 | . 6 . . Operators 2 | . 2 . . Fabricators . | . . . . Repair Stations . | . . . . Recycling Units . | . . . . Scanalyzers . | . . . . Garrison Access . | . . . . Data Cores Recovered . | . . . . Used . | . . . . Hacking Detections 10 | . 9 1 . Full Trace Events 1 | . . 1 . Feedback Events . | . . . . Feedback Blocked . | . . . . Robot Schematics Acquired . | . . . . Robots Built . | . . . . Authchips . | . . . . Time . | . . . . Total Robot Build Rating . | . . . . Part Schematics Acquired . | . . . . Parts Built . | . . . . Authchips . | . . . . Time . | . . . . Total Part Build Rating . | . . . . Parts Repaired 5 | . 5 . . Time 130 | . 130 . . Parts Recycled . | . . . . Recycled Matter . | . . . . Retrieved Matter . | . . . . Retrieved Components 10 | . 10 . . Parts Scanalyzed . | . . . . Part Schematics Acquired . | . . . . Parts Damaged . | . . . . Bothacking | -11 -10 -10 -10 ------------ Run | Yrd Mat Min Sub Used RIF Installer . | . . . . Robots Hacked . | . . . . Non-combat . | . . . . Combat . | . . . . Robot Hacks Applied . | . . . . Relay Couplers Released . | . . . . Fabnet Peak Effective % . | . . . . Robots Rewired . | . . . . Allies Hacked . | . . . . Hacks Repelled . | . . . . Allies | -11 -10 -10 -10 -------- Run | Yrd Mat Min Sub Total Allies 5 | . 2 3 . Largest Group 5 | . 2 5 5 Highest-Rated Group 60 | . 20 60 60 Highest-Rated Ally 16 | . 10 16 16 Total Orders 7 | . . 2 5 STAY 5 | . . 1 4 FOLLOW 2 | . . 1 1 Ally Attacks 17 | . . . 17 Total Damage 135 | . . . 135 Kills . | . . . . Allies Corrupted . | . . . . Allies Melted . | . . . . Intel | -11 -10 -10 -10 ------- Run | Yrd Mat Min Sub Robot Analysis Total 1 | . 1 . . Derelict Logs Recovered 1 | . . 1 . Drone Launches . | . . . . Drone Recoveries . | . . . . Exploration | -11 -10 -10 -10 ------------- Run | Yrd Mat Min Sub Turns Passed 7148 | . 1610 1823 3715 Spaces Moved 3186 | 1 799 1021 1365 Core . | . . . . Treads 2924 | . 538 1021 1365 Legs 31 | 1 30 . . Wheels 231 | . 231 . . Hover . | . . . . Flight . | . . . . Fastest Speed 120 | 120 120 160 160 Average Speed 201 | 120 149 160 262 Slowest Speed 320 | 120 240 240 320 Overloaded Moves . | . . . . Propulsion Burnouts . | . . . . Robots Hopped . | . . . . Cave-ins Triggered . | . . . . Exploration Rate (%) 69 | 2 98 99 77 Regions Visited 3 Branch Regions 2 Pre-discovered Areas 2 | . . 2 . Known Exits Taken . | . . . . Unknown Exits Taken 3 | 1 1 1 . Scrap Searched 3 | . . 1 2 Spaces Dug 2 | . 2 . . Terrain Destroyed 6 | . 5 . 1 Melee . | . . . . Projectile 6 | . 5 . 1 AOE . | . . . . Terrain Rammed . | . . . . Walls Destroyed . | . . . . Machines Disabled . | . . . . Actions | -11 -10 -10 -10 --------- Run | Yrd Mat Min Sub Total 3696 | . 1096 1156 1444 Wait 295 | . 193 89 13 Move 3183 | . 798 1020 1365 Hop . | . . . . Pick Up 36 | . 16 10 10 Fast Attach 16 | . 11 2 3 Attach 6 | . 3 . 3 Detach 1 | . . . 1 Swap 10 | . 6 1 3 Drop 37 | . 13 8 16 Fire 111 | . 56 26 29 Melee . | . . . . Ram . | . . . . Kick . | . . . . Crush . | . . . . Escape Stasis . | . . . . Rewire . | . . . . Trap 1 | . . . 1 Miscellaneous . | . . . . Route ------- -11/Scrapyard -10/Materials (discovered 5 exits: [*Mat x3] / *Min x2) -10/Mines (discovered 3 exits: [*Mat x2] / *Sub) -10/Subcaves (discovered 1 exit: [*Mat]) History --------- Turn | Location | Event 1 | -11/Scrapyard | Discovered new exit (range 0) 1 | -11/Scrapyard | Entered Materials 149 | -10/Materials | Discovered new exit (range 7) 277 | -10/Materials | Destroyed 7 combat bots 304 | -10/Materials | Build established: Mutant 625 | -10/Materials | Discovered new exit (range 4) 727 | -10/Materials | Discovered new exit (range 8) 932 | -10/Materials | Discovered new exit (range 9) 1275 | -10/Materials | Repaired Lgt. Treads 1303 | -10/Materials | Repaired Lgt. Armor Plating 1330 | -10/Materials | Repaired Lgt. Cannon 1358 | -10/Materials | Repaired Lgt. Treads 1385 | -10/Materials | Repaired Signal Interpreter 1407 | -10/Materials | Discovered new exit (range 3) 1611 | -10/Materials | Entered Mines 1611 | -10/Mines | Accompanied by 2 allies 1612 | -10/Mines | Learned location of Storage (-7) 1799 | -10/Mines | Found a damaged Exp. Sensor Array with a note attached 1802 | -10/Mines | Found Prototype Device 1877 | -10/Mines | Core integrity fell below 50% 1912 | -10/Mines | Discovered new exit (range 11) 1948 | -10/Mines | Learned location of Mines (-8) 1972 | -10/Mines | Discovered new exit (range 5) 2133 | -10/Mines | Met a Derelict who couldn't figure out how to use a Trap Extractor 2661 | -10/Mines | Assisted by bots powering up and referring to "LRC-V3" 2920 | -10/Mines | Discovered new exit (range 2) 2963 | -10/Mines | Build established: Commander-Mutant 3434 | -10/Mines | Entered Subcaves 3434 | -10/Subcaves | Accompanied by 5 allies 3437 | -10/Subcaves | Shifting Twisted Machinery released Shrapnel Trap 3532 | -10/Subcaves | Shifting Twisted Machinery released Sub. Machine Gun 3533 | -10/Subcaves | Identified Exp. Sensor Array 3640 | -10/Subcaves | A swath of the cavern ceiling suddenly collapsed 3655 | -10/Subcaves | Lost 3 parts (1n1u1w) 3791 | -10/Subcaves | Core integrity fell below 20% 4133 | -10/Subcaves | A swath of the cavern ceiling suddenly collapsed 4257 | -10/Subcaves | Disturbed a concealed Subdweller 4530 | -10/Subcaves | Visited Clippyterm 4539 | -10/Subcaves | Learned Research security intel 6078 | -10/Subcaves | Discovered new exit (range 10) 6923 | -10/Subcaves | Shifting Twisted Machinery released Shrapnel Trap 6933 | -10/Subcaves | Shifting Twisted Machinery released Flamer 7149 | -10/Subcaves | Destroyed by I9-TCJ(R) with Subdweller Beam Cannon Last Messages --------------- 06589_ Acquired Lrg. Storage Unit. 06598_ Subatomizers dissect the Imp. Utility Shielding. 06605_ N7OA%/F>5FDMCRK:/=&=0YGPN 06627_ R9HY1J9EKXHTOEMD#Y3OSC>I 06642_ System corrupted: Matter fused (-8). 06669_ GN-0BG(u) deconstructs Twisted Machinery. 06682_ System corrupted: Component data lost. 06724_ System corrupted: Substantial component data lost. 06755_ GN-0BG(u) deconstructs Twisted Machinery. 06800_ System corrupted: Energy discharge (-25). 06834_ Subatomizers dissect the Battle Rifle. 06854_ System corrupted: Component data lost. Shrapnel Trap falls loose from the Twisted Machinery. Flamer falls loose from the Twisted Machinery. 06943_ Dropped Lrg. Storage Unit. 06944_ Acquired Shrapnel Trap. 07066_ GN-0BG(u) builds Twisted Machinery. 07103_ System corrupted: Heat flow error (+162). 07103_ Subatomizers dissect the Lrg. Storage Unit. 07149_ I5R9OUSEUDTWJ#UEWSIL# T::8 Map ----- +----------------------------------------------------+ | ??????????????????????????????????# #??### ## | | ??????????????????????????????????# #????# # | | ??????????????????????????????????# #????# ### | | ??????????????????????????????????# ##???# #?? | | ??????????????????????????????????# ##### # #??## | | ??????????????????????????????????# ###???? | | ??????????????????????????????????##########?????? | | ?????????????????????????????????????????????????? | | ?????????????????????????????????????????????????? | | ?????????????????????????????????????????????????? | | ?????????????????????????????????????????????????? | | ???????????????????????????????? ???????????????? | | ???????????????????????????????? ??????????????? | | ???????????????????????????????? ???????????????? | | ??????????????????????????????## ???????????????? | | ????????????????#?????????????# ???????????????? | | ????????????????#"????????????" ???????????????? | | ????????????????# ??????????## #???????????????? | | ???????????????##RR ?????????#" #???????????????? | | ????????????????" #????????? #???????????????? | | ??????????????# "" ????????# #???????????????? | | ??????????????# " ???????# #####???????????? | | ?????????????## " #?????## ## #???????????? | | ????????????" " #?#### # #???????????? | | ???????????? " ## # #???????????? | | ???????????? " @ #???????????? | | ?????????? #???????????? | | ?????????? ## ###?????????? | | ??????????? ##?#### ### #?????????? | | ??????????? ??????###?# ##?????????? | | ???????????? [ ???????????# #??????????? | | ???????????? ## ????????????## #??????????? | | ???????????????# ??????????????## ##?????????? | | ???????????????# ???????????????# #?????????? | | ?????????????? ????????????????## #####??????? | | ?????????????? ??????????????#### #??????? | | ?????????????? ???????????????# ##??????? | | ????????????????????????????????# |" ##???????? | | ??????????????????????????????### " #????###?? | | ??????????????????????????##### ##????# ##? | | ??????????????????????????# # # ##????## #? | | ??????????????????????????# " ## "" ##???## #? | | ??????????????????????????#" " ## """ ##### ### | | ??????????????????????????#" #### """"!# # ##?# | | ?????????????????"????????## #?# " ##??# | | ?????? ????????? "???? ??#" #?##" #???# | | ?????# ??? ???? ##?? ?#" ##??### #???# | | ????# ??? ???# "# ?? #"" "#????## " #####???# | | ??? # ### ???# " ??? """##?????# " #?????### | | ???? ????? ?? """##?????# " #?????# | +----------------------------------------------------+ Best States ------------- Heat Dissipation 25 Energy Generation 10 Energy Capacity 250 Matter Stores 300 Matter Capacity 300 Sight Range 16 Terrain Scan Density 10 Armor Coverage 800 Evasion (%) 55 Targeting Accuracy 10 Recoil Reduction 2 Item Schematics ----------------- None Robot Schematics ------------------ None Fabricated ------------ Nothing Alien Tech Used ----------------- None Achievements -------------- None Challenges ------------ None Game ------ Seed GravitonSubatomicTerrabomb Manual? 0 Play Time 00:27:44 Cumulative 148.0 hours Start 2024.11.30 @ 09:46:56 End 2024.11.30 @ 11:24:59 Sessions 3 Manual Loads 0 Difficulty Rogue Special Mode None Game No. 278 Rogue 278 Adventurer 0 Explorer 0 Win Type - Total 0 Types 0/0/0/0/0/0/0/0/0 Lore% 45 Gallery% 41 Achievement% 36 Wizard Run 0 Options --------- Layout 0 ASCII 0 Keyboard 0 Movement Mouse Keybinds 0 Fullscreen 1 Font 24/Smallcaps Map View 91x25 Zoom Use 88% Tactical HUD 1 Map Filters NONE Filters NONE Steam 1 RUN: 6e74a0fd-5d57-4cb5-8946-a51d2ee062e0